[Event "Early-Titled-Tuesday-Blitz-February-06-2024"]
[Site "Chess.com"]
[Date "2024.02.06"]
[Round "4"]
[White "zsoltkorpics"]
[Black "agvania123"]
[Result "1/2-1/2"]
[WhiteElo "2467"]
[BlackElo "2278"]
[TimeControl "180+1"]
[EndTime "8:40:14 PST"]
[Termination "Game drawn - insufficient material"]

1. e4 {[%clk 0:03:00.9]} 1... d5 {[%clk 0:02:58.5]} 2. exd5 {[%clk 0:03:00.6]}
2... Qxd5 {[%clk 0:02:59.4]} 3. Nc3 {[%clk 0:03:00.5]} 3... Qd8 {[%clk 0:03:00]}
4. d4 {[%clk 0:03:00]} 4... Nf6 {[%clk 0:03:00.4]} 5. Nf3 {[%clk 0:02:59.5]}
5... Bg4 {[%clk 0:03:00.9]} 6. h3 {[%clk 0:02:57.9]} 6... Bxf3 {[%clk
0:02:59.5]} 7. Qxf3 {[%clk 0:02:58.8]} 7... c6 {[%clk 0:03:00]} 8. Be3 {[%clk
0:02:55.7]} 8... e6 {[%clk 0:03:00.3]} 9. O-O-O {[%clk 0:02:49.4]} 9... Bb4
{[%clk 0:03:00.7]} 10. Ne4 {[%clk 0:02:49.1]} 10... Nxe4 {[%clk 0:03:01]} 11.
Qxe4 {[%clk 0:02:49.6]} 11... Qd5 {[%clk 0:03:01.4]} 12. Qxd5 {[%clk 0:02:47.9]}
12... cxd5 {[%clk 0:03:01.3]} 13. h4 {[%clk 0:02:42]} 13... h5 {[%clk
0:02:55.6]} 14. Bd3 {[%clk 0:02:39]} 14... Nc6 {[%clk 0:02:54.6]} 15. Rh3 {[%clk
0:02:29.5]} 15... Rc8 {[%clk 0:02:48.5]} 16. Rg3 {[%clk 0:02:27.3]} 16... g6
{[%clk 0:02:46.4]} 17. Bf4 {[%clk 0:02:22.7]} 17... Be7 {[%clk 0:02:40.9]} 18.
Re3 {[%clk 0:01:43.2]} 18... Bf6 {[%clk 0:02:24.2]} 19. Bb5 {[%clk 0:01:38.5]}
19... a6 {[%clk 0:02:14]} 20. Bxc6+ {[%clk 0:01:36]} 20... Rxc6 {[%clk
0:02:14.9]} 21. g3 {[%clk 0:01:35.5]} 21... Kd7 {[%clk 0:02:10.7]} 22. Be5
{[%clk 0:01:32.4]} 22... Bxe5 {[%clk 0:02:08.3]} 23. Rxe5 {[%clk 0:01:31.3]}
23... Rhc8 {[%clk 0:02:08.8]} 24. c3 {[%clk 0:01:27]} 24... b5 {[%clk
0:02:09.2]} 25. Re3 {[%clk 0:01:19]} 25... b4 {[%clk 0:02:09]} 26. Rdd3 {[%clk
0:01:19]} 26... bxc3 {[%clk 0:02:00.5]} 27. Rxc3 {[%clk 0:01:17.7]} 27... Rxc3+
{[%clk 0:02:00.8]} 28. Rxc3 {[%clk 0:01:14.5]} 28... Rxc3+ {[%clk 0:01:25.7]}
29. bxc3 {[%clk 0:01:15.4]} 29... Kc6 {[%clk 0:01:24.9]} 30. Kb2 {[%clk
0:01:13.7]} 30... f6 {[%clk 0:01:24]} 31. Kb3 {[%clk 0:01:09.9]} 31... e5 {[%clk
0:01:20.9]} 32. f3 {[%clk 0:00:58.1]} 32... Kb5 {[%clk 0:01:08.4]} 33. a4+
{[%clk 0:00:53.3]} 33... Ka5 {[%clk 0:01:00.9]} 34. Ka3 {[%clk 0:00:35.8]} 34...
Kb6 {[%clk 0:00:33.4]} 35. Kb4 {[%clk 0:00:28.9]} 35... Kc6 {[%clk 0:00:28.5]}
36. Kb3 {[%clk 0:00:24.5]} 36... Kd6 {[%clk 0:00:17]} 37. Kc2 {[%clk 0:00:21.6]}
37... Ke6 {[%clk 0:00:17]} 38. Kd3 {[%clk 0:00:21.7]} 38... Kf5 {[%clk
0:00:17.2]} 39. c4 {[%clk 0:00:20.9]} 39... dxc4+ {[%clk 0:00:17.1]} 40. Kxc4
{[%clk 0:00:20.8]} 40... Ke6 {[%clk 0:00:14.3]} 41. dxe5 {[%clk 0:00:19.6]}
41... Kxe5 {[%clk 0:00:15.2]} 42. Kc5 {[%clk 0:00:19.7]} 42... f5 {[%clk
0:00:15.1]} 43. Kb6 {[%clk 0:00:19.4]} 43... f4 {[%clk 0:00:15.6]} 44. gxf4+
{[%clk 0:00:18.7]} 44... Kxf4 {[%clk 0:00:16.5]} 45. Kxa6 {[%clk 0:00:19.3]}
45... g5 {[%clk 0:00:17]} 46. hxg5 {[%clk 0:00:18.8]} 46... Kxg5 {[%clk
0:00:17.9]} 47. Kb5 {[%clk 0:00:18.1]} 47... h4 {[%clk 0:00:18.2]} 48. a5 {[%clk
0:00:18.5]} 48... h3 {[%clk 0:00:18.6]} 49. a6 {[%clk 0:00:14.6]} 49... h2
{[%clk 0:00:19]} 50. Kb6 {[%clk 0:00:15.3]} 50... h1=Q {[%clk 0:00:19.2]} 51.
Kb7 {[%clk 0:00:10.5]} 51... Qxf3+ {[%clk 0:00:19.5]} 52. Kb8 {[%clk 0:00:10.2]}
52... Kf6 {[%clk 0:00:18.5]} 53. a7 {[%clk 0:00:10.2]} 53... Qb3+ {[%clk
0:00:19.1]} 54. Kc8 {[%clk 0:00:09.7]} 54... Qd5 {[%clk 0:00:17.4]} 55. Kb8
{[%clk 0:00:09.4]} 55... Qb5+ {[%clk 0:00:17.9]} 56. Kc7 {[%clk 0:00:08.9]}
56... Qa6 {[%clk 0:00:18]} 57. Kb8 {[%clk 0:00:08.9]} 57... Qb6+ {[%clk
0:00:17.9]} 58. Ka8 {[%clk 0:00:09.1]} 58... Qd8+ {[%clk 0:00:17.9]} 59. Kb7
{[%clk 0:00:09.4]} 59... Qd5+ {[%clk 0:00:17.8]} 60. Kb8 {[%clk 0:00:09.8]}
60... Ke7 {[%clk 0:00:17]} 61. a8=Q {[%clk 0:00:09.6]} 61... Qxa8+ {[%clk
0:00:17.6]} 62. Kxa8 {[%clk 0:00:09.5]} 1/2-1/2

[Event "Early-Titled-Tuesday-Blitz-February-06-2024"]
[Site "Chess.com"]
[Date "2024.02.06"]
[Round "4"]
[White "KaterynaLagno"]
[Black "manitodeplomo"]
[Result "0-1"]
[WhiteElo "2815"]
[BlackElo "2587"]
[TimeControl "180+1"]
[EndTime "8:40:15 PST"]
[Termination "manitodeplomo won by resignation"]

1. e4 {[%clk 0:03:00.9]} 1... c5 {[%clk 0:02:59.2]} 2. Nf3 {[%clk 0:03:00.6]}
2... e6 {[%clk 0:02:57.4]} 3. d4 {[%clk 0:03:00.6]} 3... cxd4 {[%clk 0:02:58.3]}
4. Nxd4 {[%clk 0:03:01.3]} 4... a6 {[%clk 0:02:58.7]} 5. Nc3 {[%clk 0:02:58.6]}
5... b5 {[%clk 0:02:57.4]} 6. Bd3 {[%clk 0:02:58.8]} 6... Qb6 {[%clk 0:02:56.9]}
7. Nb3 {[%clk 0:02:58]} 7... Qc7 {[%clk 0:02:55.8]} 8. O-O {[%clk 0:02:58.1]}
8... Nf6 {[%clk 0:02:46.5]} 9. Qe2 {[%clk 0:02:53.3]} 9... d6 {[%clk 0:02:45.2]}
10. f4 {[%clk 0:02:47.9]} 10... Nbd7 {[%clk 0:02:30]} 11. Be3 {[%clk 0:02:43.3]}
11... Bb7 {[%clk 0:02:27]} 12. a3 {[%clk 0:02:36.8]} 12... Be7 {[%clk
0:02:26.4]} 13. Rae1 {[%clk 0:02:34.2]} 13... O-O {[%clk 0:02:26.3]} 14. g4
{[%clk 0:02:33.5]} 14... Nc5 {[%clk 0:02:15.3]} 15. Nxc5 {[%clk 0:02:25.3]}
15... dxc5 {[%clk 0:02:13.3]} 16. e5 {[%clk 0:02:25.6]} 16... c4 {[%clk
0:02:05.1]} 17. Bxc4 {[%clk 0:02:01.1]} 17... Qc6 {[%clk 0:01:49.2]} 18. Bd4
{[%clk 0:01:05.3]} 18... Rfd8 {[%clk 0:00:53.9]} 19. exf6 {[%clk 0:00:59.9]}
19... Rxd4 {[%clk 0:00:47.8]} 20. Bd5 {[%clk 0:00:40.1]} 20... Rxd5 {[%clk
0:00:34.9]} 21. fxe7 {[%clk 0:00:38.9]} 21... Rd4 {[%clk 0:00:15]} 22. Kf2
{[%clk 0:00:26.9]} 22... Re8 {[%clk 0:00:11.9]} 23. Kg3 {[%clk 0:00:24.9]} 23...
Rxe7 {[%clk 0:00:11]} 24. Rd1 {[%clk 0:00:19.5]} 24... Red7 {[%clk 0:00:09.7]}
25. Rxd4 {[%clk 0:00:18.1]} 25... Rxd4 {[%clk 0:00:10.6]} 26. Rd1 {[%clk
0:00:17.4]} 26... Qd6 {[%clk 0:00:10.4]} 27. Rxd4 {[%clk 0:00:16.5]} 27... Qxd4
{[%clk 0:00:11.3]} 28. Qf2 {[%clk 0:00:15.1]} 28... Qd6 {[%clk 0:00:08.1]} 29.
Ne2 {[%clk 0:00:12.8]} 29... g5 {[%clk 0:00:07.1]} 30. Qd4 {[%clk 0:00:11.9]}
30... gxf4+ {[%clk 0:00:06.4]} 31. Kf2 {[%clk 0:00:11.2]} 31... Qxd4+ {[%clk
0:00:05.6]} 32. Nxd4 {[%clk 0:00:12.1]} 32... e5 {[%clk 0:00:05.7]} 33. Nb3
{[%clk 0:00:11.8]} 33... Bd5 {[%clk 0:00:05.2]} 34. Nc5 {[%clk 0:00:11.3]} 34...
Kg7 {[%clk 0:00:05.5]} 35. Nxa6 {[%clk 0:00:11.1]} 35... Kg6 {[%clk 0:00:05.5]}
36. Nb4 {[%clk 0:00:11]} 36... Bb7 {[%clk 0:00:04.3]} 37. h4 {[%clk 0:00:11.6]}
37... h5 {[%clk 0:00:03.8]} 38. g5 {[%clk 0:00:09.5]} 38... Kf5 {[%clk
0:00:03.5]} 39. Nd3 {[%clk 0:00:09.6]} 39... e4 {[%clk 0:00:03.8]} 40. Nc5
{[%clk 0:00:10.1]} 40... Bd5 {[%clk 0:00:04.1]} 41. b3 {[%clk 0:00:09.9]} 41...
Kg4 {[%clk 0:00:04.1]} 42. a4 {[%clk 0:00:10.2]} 42... bxa4 {[%clk 0:00:03.2]}
43. bxa4 {[%clk 0:00:11.1]} 43... Kxh4 {[%clk 0:00:03.5]} 44. a5 {[%clk
0:00:10.9]} 44... Kxg5 {[%clk 0:00:03.6]} 45. a6 {[%clk 0:00:11.5]} 45... h4
{[%clk 0:00:03.8]} 46. Na4 {[%clk 0:00:08.9]} 46... h3 {[%clk 0:00:03.8]} 47.
Nc3 {[%clk 0:00:09.5]} 47... Bc6 {[%clk 0:00:03.8]} 48. Nb5 {[%clk 0:00:09.1]}
48... e3+ {[%clk 0:00:03.8]} 49. Kg1 {[%clk 0:00:09.1]} 49... h2+ {[%clk
0:00:04]} 50. Kxh2 {[%clk 0:00:09.5]} 50... e2 {[%clk 0:00:04.3]} 51. Nd4 {[%clk
0:00:09]} 51... e1=Q {[%clk 0:00:04.4]} 52. Nxc6 {[%clk 0:00:09.9]} 52... Qf2+
{[%clk 0:00:04.6]} 53. Kh3 {[%clk 0:00:09.6]} 53... Qf3+ {[%clk 0:00:05.1]} 0-1

[Event "Early-Titled-Tuesday-Blitz-February-06-2024"]
[Site "Chess.com"]
[Date "2024.02.06"]
[Round "4"]
[White "FontVella8"]
[Black "Blitzking642"]
[Result "1-0"]
[WhiteElo "2750"]
[BlackElo "2534"]
[TimeControl "180+1"]
[EndTime "8:40:18 PST"]
[Termination "FontVella8 won by resignation"]

1. Nf3 {[%clk 0:03:00.9]} 1... d5 {[%clk 0:02:59.4]} 2. b3 {[%clk 0:03:01.2]}
2... Bf5 {[%clk 0:02:47.7]} 3. Bb2 {[%clk 0:03:00.8]} 3... e6 {[%clk 0:02:47]}
4. g3 {[%clk 0:03:00.2]} 4... Nf6 {[%clk 0:02:46.5]} 5. Bg2 {[%clk 0:03:00.4]}
5... h6 {[%clk 0:02:40.6]} 6. O-O {[%clk 0:02:57.6]} 6... Be7 {[%clk 0:02:39.6]}
7. d3 {[%clk 0:02:53.6]} 7... O-O {[%clk 0:02:39]} 8. Nbd2 {[%clk 0:02:53.5]}
8... Bh7 {[%clk 0:02:30.8]} 9. c4 {[%clk 0:02:51.3]} 9... c6 {[%clk 0:02:28.6]}
10. a3 {[%clk 0:02:48.9]} 10... a5 {[%clk 0:02:28.1]} 11. Qc2 {[%clk 0:02:48.9]}
11... Nbd7 {[%clk 0:02:20.5]} 12. Rfb1 {[%clk 0:02:48.8]} 12... Bd6 {[%clk
0:02:19.2]} 13. b4 {[%clk 0:02:46.8]} 13... axb4 {[%clk 0:01:53.6]} 14. axb4
{[%clk 0:02:46]} 14... Qe7 {[%clk 0:01:42.8]} 15. c5 {[%clk 0:02:13]} 15... Bc7
{[%clk 0:01:42.4]} 16. Rxa8 {[%clk 0:02:13]} 16... Rxa8 {[%clk 0:01:41.6]} 17.
Ra1 {[%clk 0:02:13.7]} 17... Qd8 {[%clk 0:01:32.1]} 18. Qb1 {[%clk 0:01:59]}
18... e5 {[%clk 0:01:09.5]} 19. Rxa8 {[%clk 0:01:48.4]} 19... Qxa8 {[%clk
0:01:08.2]} 20. Qa1 {[%clk 0:01:49.3]} 20... Qxa1+ {[%clk 0:01:07.9]} 21. Bxa1
{[%clk 0:01:50.2]} 21... e4 {[%clk 0:00:59.6]} 22. dxe4 {[%clk 0:01:50.3]} 22...
Nxe4 {[%clk 0:00:59.2]} 23. Nb3 {[%clk 0:01:49.8]} 23... f6 {[%clk 0:00:54.8]}
24. Kf1 {[%clk 0:01:48.3]} 24... Kf7 {[%clk 0:00:52.4]} 25. Ke1 {[%clk
0:01:47.6]} 25... Ke7 {[%clk 0:00:53]} 26. Nfd4 {[%clk 0:01:47.2]} 26... f5
{[%clk 0:00:44.6]} 27. b5 {[%clk 0:01:41]} 27... Ndxc5 {[%clk 0:00:31.8]} 28.
Nxc5 {[%clk 0:01:34.4]} 28... Nxc5 {[%clk 0:00:32.7]} 29. bxc6 {[%clk
0:01:34.8]} 29... bxc6 {[%clk 0:00:20.3]} 30. Nxc6+ {[%clk 0:01:34.5]} 30... Kd6
{[%clk 0:00:20.8]} 31. Nd4 {[%clk 0:01:29.2]} 31... Ba5+ {[%clk 0:00:20.1]} 32.
Kd1 {[%clk 0:01:29.5]} 32... Ne4 {[%clk 0:00:19.2]} 33. Bxe4 {[%clk 0:01:25.2]}
33... fxe4 {[%clk 0:00:18.8]} 34. Nb3 {[%clk 0:01:25.3]} 34... Bb6 {[%clk
0:00:16.8]} 35. Bxg7 {[%clk 0:01:23.7]} 35... h5 {[%clk 0:00:17.3]} 36. Bd4
{[%clk 0:01:21.4]} 36... Bc7 {[%clk 0:00:16.6]} 37. h4 {[%clk 0:01:18.2]} 37...
Bf5 {[%clk 0:00:16.1]} 38. Kd2 {[%clk 0:01:18.3]} 38... Bc8 {[%clk 0:00:15.4]}
39. Ke3 {[%clk 0:01:18]} 39... Ba6 {[%clk 0:00:13.5]} 40. Nc5 {[%clk 0:01:11]}
40... Bc4 {[%clk 0:00:13.4]} 41. Na4 {[%clk 0:01:10.3]} 41... Ke6 {[%clk
0:00:10]} 42. Nb2 {[%clk 0:01:01]} 42... Bb5 {[%clk 0:00:09.3]} 43. Nd1 {[%clk
0:01:00.9]} 43... Ba5 {[%clk 0:00:08.8]} 44. Nb2 {[%clk 0:00:30.1]} 44... Bb4
{[%clk 0:00:07.8]} 45. Nd1 {[%clk 0:00:22.6]} 45... Ba5 {[%clk 0:00:07.5]} 46.
f3 {[%clk 0:00:18.6]} 46... Kf5 {[%clk 0:00:06.5]} 47. Nf2 {[%clk 0:00:17.4]}
47... Bb4 {[%clk 0:00:04.1]} 48. g4+ {[%clk 0:00:14.7]} 48... Kg6 {[%clk
0:00:02.6]} 49. Nh3 {[%clk 0:00:12.9]} 49... hxg4 {[%clk 0:00:01.3]} 50. fxg4
{[%clk 0:00:12.4]} 50... Bd7 {[%clk 0:00:01.9]} 51. Nf4+ {[%clk 0:00:12.7]}
51... Kh6 {[%clk 0:00:01.4]} 52. g5+ {[%clk 0:00:12.4]} 52... Kh7 {[%clk
0:00:01.2]} 53. h5 {[%clk 0:00:12.5]} 53... Bd6 {[%clk 0:00:01.8]} 54. Nxd5
{[%clk 0:00:11.3]} 54... Bg4 {[%clk 0:00:02.7]} 55. Nf6+ {[%clk 0:00:11.3]} 1-0

[Event "Early-Titled-Tuesday-Blitz-February-06-2024"]
[Site "Chess.com"]
[Date "2024.02.06"]
[Round "4"]
[White "DonMicheleCorleone"]
[Black "ProChessWICTH"]
[Result "1-0"]
[WhiteElo "2408"]
[BlackElo "2517"]
[TimeControl "180+1"]
[EndTime "8:40:18 PST"]
[Termination "DonMicheleCorleone won by resignation"]

1. e4 {[%clk 0:03:00.9]} 1... c5 {[%clk 0:02:59.6]} 2. c3 {[%clk 0:03:00.9]}
2... Nf6 {[%clk 0:02:57.3]} 3. e5 {[%clk 0:03:00.9]} 3... Nd5 {[%clk 0:02:58]}
4. d4 {[%clk 0:03:01.2]} 4... cxd4 {[%clk 0:02:57.4]} 5. Qxd4 {[%clk 0:03:02.1]}
5... e6 {[%clk 0:02:57]} 6. Nf3 {[%clk 0:03:02.3]} 6... Nc6 {[%clk 0:02:56.9]}
7. Qe4 {[%clk 0:03:02.7]} 7... f5 {[%clk 0:02:57.3]} 8. exf6 {[%clk 0:03:02.7]}
8... Nxf6 {[%clk 0:02:57.6]} 9. Qh4 {[%clk 0:03:03]} 9... Be7 {[%clk 0:02:57.8]}
10. Bd3 {[%clk 0:03:03.1]} 10... d5 {[%clk 0:02:50.3]} 11. Bg6+ {[%clk
0:02:59.5]} 11... Kf8 {[%clk 0:02:40.9]} 12. Bc2 {[%clk 0:02:56.4]} 12... Qe8
{[%clk 0:02:23.2]} 13. Bg5 {[%clk 0:02:48.3]} 13... e5 {[%clk 0:02:08.9]} 14.
O-O {[%clk 0:02:42]} 14... e4 {[%clk 0:02:07.9]} 15. Nd4 {[%clk 0:02:40.2]}
15... Nxd4 {[%clk 0:02:01.2]} 16. cxd4 {[%clk 0:02:41.1]} 16... Ng8 {[%clk
0:01:37.7]} 17. Nc3 {[%clk 0:02:29.9]} 17... h6 {[%clk 0:01:22]} 18. Bxe7+
{[%clk 0:02:22]} 18... Nxe7 {[%clk 0:01:21]} 19. Rae1 {[%clk 0:02:06.9]} 19...
Nf5 {[%clk 0:00:47.2]} 20. Qf4 {[%clk 0:02:02.6]} 20... g5 {[%clk 0:00:44.7]}
21. Qd2 {[%clk 0:01:55.5]} 21... Be6 {[%clk 0:00:32.3]} 22. f3 {[%clk
0:01:44.1]} 22... e3 {[%clk 0:00:32.3]} 23. Qd3 {[%clk 0:01:23.4]} 23... Rc8
{[%clk 0:00:20.5]} 24. g4 {[%clk 0:01:20]} 24... Nh4 {[%clk 0:00:17.8]} 25. Rxe3
{[%clk 0:01:16.6]} 25... Qf7 {[%clk 0:00:16.2]} 26. Bb3 {[%clk 0:01:03]} 26...
Kg7 {[%clk 0:00:14.1]} 27. Qb5 {[%clk 0:00:48.9]} 27... Rhd8 {[%clk 0:00:08.3]}
28. Qe2 {[%clk 0:00:41.4]} 28... Rd6 {[%clk 0:00:03.7]} 29. Re1 {[%clk
0:00:36.1]} 29... Rcc6 {[%clk 0:00:02.3]} 30. h3 {[%clk 0:00:25.7]} 30... Rb6
{[%clk 0:00:02.4]} 31. Kh2 {[%clk 0:00:24.7]} 31... Ng6 {[%clk 0:00:02.4]} 32.
Kg1 {[%clk 0:00:21.1]} 32... Nf4 {[%clk 0:00:02.8]} 33. Qf1 {[%clk 0:00:20]}
33... Rbc6 {[%clk 0:00:03.3]} 34. Re5 {[%clk 0:00:18.5]} 34... a6 {[%clk
0:00:03.2]} 35. Kh2 {[%clk 0:00:18.6]} 35... b5 {[%clk 0:00:03.3]} 36. h4 {[%clk
0:00:19]} 36... gxh4 {[%clk 0:00:03.1]} 37. Qf2 {[%clk 0:00:18.5]} 37... Qf6
{[%clk 0:00:03.6]} 38. Ne2 {[%clk 0:00:17.5]} 38... Ng6 {[%clk 0:00:03.3]} 39.
Qe3 {[%clk 0:00:13.1]} 39... Bf7 {[%clk 0:00:02.8]} 40. f4 {[%clk 0:00:11.5]}
40... Re6 {[%clk 0:00:02.4]} 41. Nc3 {[%clk 0:00:08.1]} 41... Rxe5 {[%clk
0:00:02.6]} 42. fxe5 {[%clk 0:00:08.3]} 42... Qf4+ {[%clk 0:00:02.9]} 43. Qxf4
{[%clk 0:00:08.3]} 43... Nxf4 {[%clk 0:00:03.8]} 44. Rf1 {[%clk 0:00:07.8]}
44... Rxc3 {[%clk 0:00:02.2]} 45. bxc3 {[%clk 0:00:07.2]} 45... Ne2 {[%clk
0:00:02.9]} 46. Rf3 {[%clk 0:00:05.3]} 46... a5 {[%clk 0:00:03.3]} 47. Re3
{[%clk 0:00:05.3]} 47... Nf4 {[%clk 0:00:03.3]} 48. Bc2 {[%clk 0:00:04.9]} 48...
Be6 {[%clk 0:00:02.6]} 49. Bf5 {[%clk 0:00:05.1]} 49... h5 {[%clk 0:00:02.9]}
50. Bxe6 {[%clk 0:00:04.2]} 50... Nxe6 {[%clk 0:00:03.8]} 51. gxh5 {[%clk
0:00:04.7]} 51... Kh6 {[%clk 0:00:04.3]} 52. Rf3 {[%clk 0:00:04.8]} 52... b4
{[%clk 0:00:04.6]} 53. Rf6+ {[%clk 0:00:04.4]} 53... Kxh5 {[%clk 0:00:05.1]} 54.
Rxe6 {[%clk 0:00:04.9]} 54... bxc3 {[%clk 0:00:05.4]} 55. Rc6 {[%clk 0:00:05.1]}
1-0

[Event "Early-Titled-Tuesday-Blitz-February-06-2024"]
[Site "Chess.com"]
[Date "2024.02.06"]
[Round "4"]
[White "Djager97"]
[Black "Elsa167"]
[Result "1-0"]
[WhiteElo "2607"]
[BlackElo "2866"]
[TimeControl "180+1"]
[EndTime "8:40:19 PST"]
[Termination "Djager97 won by resignation"]

1. e4 {[%clk 0:03:00.9]} 1... c5 {[%clk 0:02:57.8]} 2. Nf3 {[%clk 0:03:00.8]}
2... e6 {[%clk 0:02:58.1]} 3. d4 {[%clk 0:03:00.4]} 3... cxd4 {[%clk 0:02:59]}
4. Nxd4 {[%clk 0:02:59.8]} 4... Nf6 {[%clk 0:02:59.6]} 5. Nc3 {[%clk 0:02:59.7]}
5... Nc6 {[%clk 0:03:00.2]} 6. Ndb5 {[%clk 0:02:56.8]} 6... Bc5 {[%clk
0:03:00.1]} 7. Bf4 {[%clk 0:02:55.1]} 7... O-O {[%clk 0:03:00]} 8. Bc7 {[%clk
0:02:55.1]} 8... Qe7 {[%clk 0:03:00.3]} 9. Bd6 {[%clk 0:02:55.3]} 9... Bxd6
{[%clk 0:03:00.6]} 10. Qxd6 {[%clk 0:02:55]} 10... Qd8 {[%clk 0:03:01]} 11. Nc7
{[%clk 0:02:50.6]} 11... Rb8 {[%clk 0:02:56.2]} 12. O-O-O {[%clk 0:02:41.3]}
12... b5 {[%clk 0:02:53.3]} 13. Bxb5 {[%clk 0:02:23.7]} 13... Rb7 {[%clk
0:02:09.1]} 14. Bxc6 {[%clk 0:02:12.6]} 14... Rxc7 {[%clk 0:02:09.2]} 15. Ba4
{[%clk 0:02:12.7]} 15... Rxc3 {[%clk 0:02:01.3]} 16. bxc3 {[%clk 0:02:13.1]}
16... Nxe4 {[%clk 0:02:01.6]} 17. Qd4 {[%clk 0:02:13.1]} 17... Qg5+ {[%clk
0:01:47.8]} 18. Kb2 {[%clk 0:01:54.3]} 18... d5 {[%clk 0:01:45]} 19. c4 {[%clk
0:01:43.6]} 19... Bb7 {[%clk 0:01:20]} 20. cxd5 {[%clk 0:01:28.9]} 20... Bxd5
{[%clk 0:01:17.9]} 21. Bb3 {[%clk 0:01:28.8]} 21... Nf6 {[%clk 0:01:14.4]} 22.
g3 {[%clk 0:01:24.7]} 22... Bxh1 {[%clk 0:01:13.3]} 23. Rxh1 {[%clk 0:01:25.6]}
23... h5 {[%clk 0:01:07.1]} 24. Re1 {[%clk 0:01:22.2]} 24... Qf5 {[%clk
0:00:51.9]} 25. Qxa7 {[%clk 0:01:16.7]} 25... Ng4 {[%clk 0:00:43.4]} 26. Qd4
{[%clk 0:01:08.1]} 26... Nxh2 {[%clk 0:00:39.8]} 27. Re5 {[%clk 0:00:42.7]}
27... Qf6 {[%clk 0:00:38.8]} 28. Re4 {[%clk 0:00:39.7]} 28... Ng4 {[%clk
0:00:31.7]} 29. Qxf6 {[%clk 0:00:36.9]} 29... Nxf6 {[%clk 0:00:32.1]} 30. Rd4
{[%clk 0:00:36.1]} 30... Ra8 {[%clk 0:00:31]} 31. a4 {[%clk 0:00:35.5]} 31... g5
{[%clk 0:00:23.4]} 32. Ka3 {[%clk 0:00:27.5]} 32... Kg7 {[%clk 0:00:19.3]} 33.
Kb4 {[%clk 0:00:27.3]} 33... e5 {[%clk 0:00:18.5]} 34. Rd2 {[%clk 0:00:20]}
34... Rb8+ {[%clk 0:00:14.4]} 35. Kc4 {[%clk 0:00:16]} 35... Rc8+ {[%clk
0:00:12.2]} 36. Kb5 {[%clk 0:00:15.7]} 36... Rb8+ {[%clk 0:00:12.4]} 37. Kc6
{[%clk 0:00:15.5]} 37... Ra8 {[%clk 0:00:05.4]} 38. Kb7 {[%clk 0:00:14.5]} 38...
Ra5 {[%clk 0:00:05.8]} 39. Kb6 {[%clk 0:00:14.4]} 39... Ra8 {[%clk 0:00:06.4]}
40. a5 {[%clk 0:00:14.7]} 40... Ne4 {[%clk 0:00:04.9]} 41. Re2 {[%clk
0:00:14.6]} 41... Nc3 {[%clk 0:00:04.5]} 42. Rxe5 {[%clk 0:00:14.5]} 42... Kf6
{[%clk 0:00:05.1]} 43. Rc5 {[%clk 0:00:14.5]} 43... Ne4 {[%clk 0:00:05.5]} 44.
Rc6+ {[%clk 0:00:13.6]} 44... Ke5 {[%clk 0:00:06.1]} 45. a6 {[%clk 0:00:13.8]}
45... Nd6 {[%clk 0:00:06.5]} 46. Rxd6 {[%clk 0:00:13.2]} 46... Kxd6 {[%clk
0:00:06.7]} 47. a7 {[%clk 0:00:13.7]} 47... h4 {[%clk 0:00:06.2]} 48. gxh4
{[%clk 0:00:11.7]} 48... gxh4 {[%clk 0:00:07.1]} 49. Bc4 {[%clk 0:00:11.6]}
49... h3 {[%clk 0:00:04.5]} 50. Bf1 {[%clk 0:00:12.1]} 50... h2 {[%clk
0:00:05.1]} 51. Bg2 {[%clk 0:00:12]} 51... Rd8 {[%clk 0:00:03.7]} 52. a8=Q
{[%clk 0:00:11.9]} 52... Rd7 {[%clk 0:00:02.7]} 53. Qd5+ {[%clk 0:00:10.3]}
53... Ke7 {[%clk 0:00:03.6]} 54. Qe5+ {[%clk 0:00:10.7]} 54... Kf8 {[%clk
0:00:03.9]} 55. Qxh2 {[%clk 0:00:10.9]} 55... f5 {[%clk 0:00:03.6]} 56. Qh8+
{[%clk 0:00:10.5]} 56... Ke7 {[%clk 0:00:03.6]} 57. Qg7+ {[%clk 0:00:11]} 57...
Kd6 {[%clk 0:00:04.1]} 58. Qxd7+ {[%clk 0:00:11.1]} 58... Kxd7 {[%clk 0:00:05]}
1-0